Cogmind - Beta 10.2 @@@ ROGUE MODE // 2021.04.24 @ 15:30:38 Player: ChromeKnight Result: Destroyed by as-45769 with Assembled Heavy Rifle Performance ------------- Evolutions (0) 0 Regions Visited (2) 400 Robots Destroyed (15) 75 Value Destroyed (337) 337 Prototype IDs (0) 0 Alien Tech Used (0) 0 Bonus (0) 0 TOTAL SCORE: 812 Bonus ------- None Cogmind --------- Core Integrity 0/250 Matter 289/300 Energy 75/100 System Corruption 2% Temperature Cool (0) Movement Hovering (120) Ox1 Location -10/Mines Parts ------- > --- POWER (1) -------- (None) > --- PROPULSION (2) --- Hover Unit > --- UTILITY (2) ------ Medium Storage Unit > --- WEAPON (2) ------- (None) > --- INVENTORY (8) ---- Improved Heat Sink Medium Matter Pod (100) Medium Matter Pod (100) Propulsion Shielding Light Armor Plating Small Laser Assault Rifle Peak State ------------ > --- POWER ------------ Light Nuclear Core > --- PROPULSION ------- Aluminum Leg Aluminum Leg > --- UTILITY ---------- Medium Storage Unit Light Armor Plating > --- WEAPON ----------- Small Laser Assault Rifle > --- INVENTORY -------- Hover Unit Improved Heat Sink Medium Matter Pod Medium Matter Pod Propulsion Shielding Light Armor Plating Small Laser Assault Rifle [Rating: 10] Favorites ----------- Power Ion Engine Engine Ion Engine Power Core Light Nuclear Core Propulsion Aluminum Leg Leg Aluminum Leg Utility Light Armor Plating Storage Medium Storage Unit Protection Light Armor Plating Weapon Small Laser Energy Gun Small Laser Ballistic Gun Assault Rifle Build | -11 -10 -10 ------- Run | Scr Mat Min Slots Evolved . | . . . Power . | . . . Propulsion . | . . . Utility . | . . . Weapon . | . . . Parts Attached 14 | 6 3 5 Power 2 | 1 . 1 Engine 1 | 1 . . Core 1 | . . 1 Reactor . | . . . Propulsion 3 | 2 . 1 Treads . | . . . Leg 2 | 2 . . Wheel . | . . . Hover 1 | . . 1 Flight . | . . . Utility 4 | 1 2 1 Device . | . . . Storage 2 | 1 1 . Processor . | . . . Hackware . | . . . Protection 2 | . 1 1 Artifact . | . . . Weapon 5 | 2 1 2 Energy Gun 2 | 2 . . Energy Cannon . | . . . Ballistic Gun 3 | . 1 2 Ballistic Cannon . | . . . Launcher . | . . . Special Weapon . | . . . Impact Weapon . | . . . Slashing Weapon . | . . . Piercing Weapon . | . . . Special Melee Weapon . | . . . Unidentified Prototypes . | . . . Parts Lost 7 | . 1 6 Power 1 | . . 1 Propulsion 1 | . . 1 Utility 2 | . 1 1 Weapon 3 | . . 3 Highest Loss Streak 6 | . 1 6 Average Slot Usage (%) 95 | . 97 89 Engine 11 | . 14 7 Core 1 | . . 5 Leg 27 | . 28 27 Storage 14 | . 14 14 Protection 11 | . 11 9 Energy Gun 14 | . 15 9 Ballistic Gun 12 | . 12 14 Naked Turns . | . . . Heaviest Build 19 | 11 19 19 Greatest Support 20 | 20 20 20 Greatest Overweight (x) 1 | 1 . . Average Overweight (x) . | . . . Largest Inventory Capacity 8 | 6 8 8 Average Capacity 7 | 5 7 8 Most Carried 8 | 1 8 8 Average Carried 5 | . 5 7 Final Capacity 8 | 6 8 8 Final Carried 8 | 1 8 7 Class Distribution -------------------- 100% | Mutant Dominant Class ---------------- Mutant | -10/Materials Mutant | -10/Mines Resources | -11 -10 -10 ----------- Run | Scr Mat Min Matter Collected 656 | 249 322 85 Remotely . | . . . Salvage Created 623 | . 534 89 Parts 37 | . 25 12 Haulers Intercepted 1 | . 1 . Recyclers Shooed 3 | . 1 2 Parts Field Recycled . | . . . Retrieved Matter . | . . . Parts Self-Destructed . | . . . Prevented . | . . . Kills | -11 -10 -10 ------- Run | Scr Mat Min Combat Hostiles Destroyed 10 | . 6 4 Guns 10 | . 6 4 Classes Destroyed 6 | . 5 1 Hauler 1 | . 1 . Recycler 2 | . 2 . Mechanic 1 | . 1 . Watcher 1 | . 1 . Swarmer 3 | . . 3 Grunt 7 | . 6 1 Best Kill Streak 3 | . 3 3 Combat Bots Only 3 | . 2 3 Max Kills in Single Turn 1 | . 1 1 Gunslinging . | . . . Exploded . | . . . Melee . | . . . Uniques/NPCs Destroyed . | . . . Combat | -11 -10 -10 -------- Run | Scr Mat Min Damage Taken 980 | . 289 691 Core 258 | . 79 179 Absorbed by Shields . | . . . Core Remaining (%) 100 | 100 . . Volleys Fired 56 | . 29 27 Largest 2 | . 2 2 Hottest 60 | . 60 60 Shots Fired 101 | . 57 44 Gun 101 | . 57 44 Cannon . | . . . Launcher . | . . . Special . | . . . Kinetic 58 | . 29 29 Thermal 43 | . 28 15 Explosive . | . . . Electromagnetic . | . . . Robot Hit Streak 11 | . 11 8 Robot Miss Streak 7 | . 2 7 Penetration Max . | . . . Secondary Targets 1 | . . 1 Max Gunslinging Chain 1 | . . 1 Shots Hit Robots 60 | . 37 23 Core Hits 29 | . 22 7 Critical Hits . | . . . Critical Kills . | . . . Critical Parts Destroyed . | . . . Melee Attacks . | . . . Impact . | . . . Slashing . | . . . Piercing . | . . . Sneak Attacks . | . . . Combat Hostiles . | . . . Follow-up Attacks . | . . . Damage Inflicted 697 | . 436 261 Guns 697 | . 436 261 Cannons . | . . . Explosions . | . . . Melee . | . . . Ramming . | . . . Kinetic 418 | . 220 198 Thermal 279 | . 216 63 Explosive . | . . . Electromagnetic . | . . . Impact . | . . . Slashing . | . . . Piercing . | . . . Highest Corruption 2 | . 2 2 Average Corruption 2 | . 2 2 Corruption Purged . | . . . Effects 1 | . 1 . Heat Flow Errors 1 | . 1 . Overload Shots . | . . . Overflow Damage . | . . . Projectiles . | . . . Explosions . | . . . Melee . | . . . Knockbacks . | . . . Impact . | . . . Kinetic . | . . . Secondary . | . . . Self-Inflicted Damage . | . . . Shots . | . . . Rammed . | . . . Targets Rammed . | . . . Kicked . | . . . Crushed . | . . . Highest Temperature 223 | . 223 135 Average Temperature 51 | . 47 56 Received Heat Transfer 228 | . 168 60 Siege Activations . | . . . Robots Corrupted . | . . . Combat Hostiles . | . . . Parts Fried . | . . . Impact Corruptions . | . . . Robots Melted . | . . . Combat Hostiles . | . . . Parts Melted . | . . . Heat Transferred 625 | . 475 150 Parts Sabotaged . | . . . Parts Stolen . | . . . Parts Stripped . | . . . Power Chain Reactions . | . . . Missiles Intercepted . | . . . Alert | -11 -10 -10 ------- Run | Scr Mat Min Peak Influence 170 | . 170 110 Initial 15 | . . 15 Average 71 | . 89 47 Maximum Alert Level . | . . . Low Security (%) 100 | 100 100 100 Level 1 . | . . . Level 2 . | . . . Level 3 . | . . . Level 4 . | . . . Level 5 . | . . . High Security . | . . . Max Security . | . . . Squads Dispatched 1 | . 1 . Investigation . | . . . Extermination . | . . . Reinforcement 1 | . 1 . Assault . | . . . Garrison . | . . . Intercept . | . . . Construction Impeded . | . . . Haulers Reinforced . | . . . Stealth | -11 -10 -10 --------- Run | Scr Mat Min Distress Signals . | . . . Communications Jammed . | . . . Distress Signals . | . . . Times Spotted 29 | . 13 16 Peak Tracking Total 11 | . 2 11 Tactical Retreats 1 | . . 1 Traps | -11 -10 -10 ------- Run | Scr Mat Min Traps Triggered 1 | . 1 . Indirectly . | . . . Trap Hack Attempts . | . . . Triggered . | . . . Disarmed . | . . . Reprogrammed . | . . . Reused . | . . . Traps Extracted . | . . . Installed . | . . . Triggered 1 | . . 1 Machines | -11 -10 -10 ---------- Run | Scr Mat Min Machines Disabled . | . . . Max in Single Turn . | . . . Machines Sabotaged . | . . . Garrisons Compromised . | . . . Overloaded Fab Kills . | . . . Fab Network Shutdowns . | . . . Hacking | -11 -10 -10 --------- Run | Scr Mat Min Machines Accessed 1 | . 1 . Terminals 1 | . 1 . Fabricators . | . . . Repair Stations . | . . . Recycling Units . | . . . Scanalyzers . | . . . Garrison Access . | . . . Total Hacks 8 | . 8 . Successful 2 | . 2 . Failed 6 | . 6 . Catastrophic . | . . . Database Lockouts . | . . . Manual 7 | . 7 . Terminals 8 | . 8 . Fabricators . | . . . Repair Stations . | . . . Recycling Units . | . . . Scanalyzers . | . . . Garrison Access . | . . . Terminal Hacks 2 | . 2 . Robot Analysis 2 | . 2 . Fabricator Hacks . | . . . Repair Station Hacks . | . . . Recycling Unit Hacks . | . . . Scanalyzer . | . . . Garrison Access Hacks . | . . . Unauthorized Hacks . | . . . Terminals . | . . . Fabricators . | . . . Repair Stations . | . . . Recycling Units . | . . . Scanalyzers . | . . . Garrison Access . | . . . Data Cores Recovered . | . . . Used . | . . . Hacking Detections 1 | . 1 . Full Trace Events 1 | . 1 . Feedback Events . | . . . Feedback Blocked . | . . . Robot Schematics Acquired . | . . . Robots Built . | . . . Matter . | . . . Time . | . . . Total Robot Build Rating . | . . . Part Schematics Acquired . | . . . Parts Built . | . . . Matter . | . . . Time . | . . . Total Part Build Rating . | . . . Parts Repaired . | . . . Time . | . . . Parts Recycled . | . . . Recycled Matter . | . . . Retrieved Matter . | . . . Retrieved Components . | . . . Parts Scanalyzed . | . . . Part Schematics Acquired . | . . . Parts Damaged . | . . . Bothacking | -11 -10 -10 ------------ Run | Scr Mat Min Used RIF Installer . | . . . Robots Hacked . | . . . Non-combat . | . . . Combat . | . . . Robot Hacks Applied . | . . . Relay Couplers Released . | . . . Robots Rewired . | . . . Allies Hacked . | . . . Hacks Repelled . | . . . Allies | -11 -10 -10 -------- Run | Scr Mat Min Total Allies . | . . . Largest Group . | . . . Highest-Rated Group . | . . . Highest-Rated Ally . | . . . Total Orders . | . . . Ally Attacks . | . . . Total Damage . | . . . Kills . | . . . Allies Corrupted . | . . . Allies Melted . | . . . Intel | -11 -10 -10 ------- Run | Scr Mat Min Robot Analysis Total 2 | . 2 . Derelict Logs Recovered . | . . . Drone Launches . | . . . Drone Recoveries . | . . . Exploration | -11 -10 -10 ------------- Run | Scr Mat Min Turns Passed 691 | 48 444 199 Spaces Moved 403 | 33 277 93 Core 2 | 2 . . Treads . | . . . Legs 401 | 31 277 93 Wheels . | . . . Hover . | . . . Flight . | . . . Fastest Speed 50 | 50 120 120 Average Speed 119 | 117 120 120 Slowest Speed 150 | 150 120 120 Overloaded Moves . | . . . Propulsion Burnouts . | . . . Robots Hopped . | . . . Cave-ins Triggered . | . . . Exploration Rate (%) 28 | 4 52 28 Regions Visited 2 Branch Regions 1 Pre-discovered Areas . | . . . Known Exits Taken . | . . . Unknown Exits Taken 2 | 1 1 . Scrap Searched 1 | . . 1 Spaces Dug . | . . . Terrain Destroyed . | . . . Melee . | . . . Projectile . | . . . AOE . | . . . Terrain Rammed . | . . . Walls Destroyed . | . . . Machines Disabled . | . . . Actions | -11 -10 -10 --------- Run | Scr Mat Min Total 510 | 39 332 139 Wait 20 | . 12 8 Move 401 | 32 276 93 Hop . | . . . Pick Up 11 | 1 8 2 Fast Attach 10 | 6 2 2 Attach 2 | . . 2 Detach 1 | . 1 . Swap 2 | . 1 1 Drop 7 | . 3 4 Fire 56 | . 29 27 Melee . | . . . Ram . | . . . Kick . | . . . Crush . | . . . Escape Stasis . | . . . Rewire . | . . . Trap . | . . . Miscellaneous . | . . . Route ------- -11/Scrapyard -10/Materials (discovered 3 exits: [*Mat] / [*Min x2]) -10/Mines History --------- Turn | Location | Event 35 | -11/Scrapyard | Discovered new exit (range 13) 49 | -11/Scrapyard | Entered Materials 307 | -10/Materials | Build established: Mutant 309 | -10/Materials | Discovered new exit (range 11) 314 | -10/Materials | Discovered new exit (range 15) 477 | -10/Materials | Discovered new exit (range 9) 493 | -10/Materials | Entered Mines 663 | -10/Mines | Assembled infested the area 677 | -10/Mines | Core integrity fell below 50% 692 | -10/Mines | Destroyed by as-45769 with Assembled Heavy Rifle Last Messages --------------- 00635_ Sml. Laser destroyed. 00641_ S-10 Pest destroyed. 00641_ R-06 Scavenger collects Flight Unit. 00644_ Lgt. Armor Plating destroyed. 00647_ S-10 Pest destroyed. 00650_ Acquired Lgt. Assault Rifle. 00652_ Acquired 19 matter. 00652_ R-06 Scavenger collects Flight Unit. 00657_ Dropped Lgt. Assault Rifle. 00659_ Acquired 17 matter. 00660_ Acquired 10 matter. 00663_ ALERT: Infestation in the mines, dispatching Demolisher response squad. 00674_ Lgt. Nuclear Core destroyed. 00678_ Assault Rifle destroyed. 00680_ as-38255 destroyed. 00682_ S-10 Pest destroyed. 00686_ Aluminum Leg destroyed. 00688_ Lgt. Assault Rifle destroyed. 00691_ Dropped Aluminum Leg. Map ----- +----------------------------------------------------+ | ??????????????????????????# ##??? | | ???????????????????????????# #??? | | ???????????????????????????## #### | | ????????????????????????????## ### | | ?????????????????????????????# ##?# | | ?????????????????????????????# #??# | | ?????????????????????????????# #??# | | ?????????????????????????????# #### | | ?????????????????????????????# | | ?????????????????????????????###### | | ??????????????????????????????????# | | ?????????????????????#????????????# | | ???????????????????? #?#####??????# | | ???????????????????? #?# ##????## | | ????????????????#### #?# ###### | | ?????????????#### # #?# | | ??????????#### ##?# | | ??????????? #?## """ | | ?????????????# #??# """ | | ??????????????# #???## """ # | | ??????????????##a ##?#### ## | | ??????????????##% ##?## ##? | | ??????????##### aa #??# ####?? | | ??????????# aa% #??# ##????? | | ??????????# a aa ##??## ##????? | | ??????????# @a ####????### ###??? | | ??????????# ###?????????## ##?? | | ??????????# #???????????## ##? | | ??????????#==#??????????## ## | | ??????????#=*#?????????## # | | ??????????#= #?######### ## # | | ??????????# [#?# ##?# # | | ??????????# #?# ######## ##???### | | ??????????# #?# #??????### #??????? | | ??????????# #?# #????????# #??????? | | ??????????# ### ### ##??# #??????? | | ??????????# % #??? #??????? | | ??????????#= ###### #?? #??????? | | ??????????#%!#?????? #?? ??????? | | ??????????# #??????? #??? #??????? | | ??????????# #?????????#??? #??????? | | ??????????# #????????????? #??????? | | ??????????# #????????????? #??????? | | ??????????# #?????????????? ???????? | | ??????????# #??????????????????????? | | ??????????# #??????????????????????? | | ??????????# #??????????????????????? | | ??????????# #??????????????????????? | | ?????????? ??????????????????????? | | ?????????? ??????????????????????? | +----------------------------------------------------+ Best States ------------- Heat Dissipation 25 Energy Generation 14 Energy Capacity 250 Matter Stores 300 Matter Capacity 300 Sight Range 16 Terrain Scan Density 10 Armor Coverage 150 Evasion (%) 40 Item Schematics ----------------- None Robot Schematics ------------------ None Fabricated ------------ Nothing Alien Tech Used ----------------- None Achievements -------------- None Challenges ------------ None Game ------ Seed MobileSniperDerivative Manual? 0 Play Time 00:05:59 Cumulative 167.2 hours Start 2021.04.24 @ 15:25:46 End 2021.04.24 @ 15:30:38 Sessions 1 Manual Loads 0 Difficulty Rogue Special Mode None Game No. 350 Rogue 197 Adventurer 148 Explorer 5 Win Type - Total 3 Types 3/0/0/0/0/0/0/0/0 Lore% 69 Gallery% 79 Achievement% 58 Wizard Run 0 Options --------- ASCII 0 Keyboard 0 Movement Numpad Keybinds 0 Fullscreen 1 Font 18/CogNarrow Map View 76x50 Tactical HUD 1 Map Filters NONE Filters NONE Steam 1 RUN: 1ec41ef9-770b-4e43-9c40-0ff99fb7dfdf